Workbook

Sheet Sheet1
A1: 2024年生产部9月接收处置记录统计表 | R1: 自产废物
A2: 废物名称 | B2: 危废代码 | C2: 形态 | D2: 上月结存 | E2: 本月接收量 | F2: 处置量及工艺 | J2: 库存量 | K2: 1#库 | L2: 2#库 | M2: 干化 | N2: 罐区 | O2: 料坑 | R2: 废物名称 | S2: 上月结存 | T2: 本月产生量 | U2: 包数 | V2: 本月处理 | Y2: 库存 | Z2: 备注 | AA2: 存储位置
F3: 固废焚烧 | G3: 废液焚烧 | H3: 清洗大桶 | I3: 污泥干化 | K3: 1#库 | L3: 2#库 | M3: 干化 | N3: 罐区 | O3: 料坑 | V3: 焚烧处置 | W3: 液体炉 | X3: 拉运
A4: 精馏残渣 | B4: 271-001-02 | C4: 固态 | D4: 0 | J4: =D4+E4-F4-G4-H4-I4 -> 0 | P4: =K4+L4+M4+N4+O4 -> 0 | R4: 炉渣（回转窑） | S4: 361.877 | T4: =42.335 -> 42.335 | U4: 39 | X4: 206.417 | Y4: =S4+T4-V4-X4-W4 -> 197.795
A5: 废有机溶剂 | B5: 271-002-02 | C5: 液态 | D5: 15.321 | F5: =10+5.321 -> 15.321 | J5: 0 | P5: 0 | R5: 飞灰（回转窑） | S5: 8.72 | T5: 9.575 | U5: 24 | X5: 4.905 | Y5: 13.39
A6: 过滤介质 | B6: 271-003-02 | C6: 固态 | D6: 0 | J6: 0 | P6: 0 | R6: 飞灰（废液炉） | S6: 2.29 | T6: 0.6 | U6: 1 | X6: 1.49 | Y6: 1.4
A7: 废盐 | B7: 271-005-02 | C7: 固态 | D7: 23.3 | E7: =10.74 -> 10.74 | F7: =8.3+8+7 -> 23.3 | J7: 10.74 | K7: 10.74 | P7: 10.74 | R7: 废油渣/泥 | S7: 0 | Y7: 0 | Z7: 精馏切水后剩下的罐底泥
A8: 实验室废液 | B8: 900-002-03 | C8: 液态 | D8: 33.056 | E8: =11.45+14.977 -> 26.427 | J8: 59.483 | L8: 59.483 | P8: 59.483 | R8: 含油污水 | S8: 0 | T8: 2.78 | V8: 2.78 | Y8: 0 | Z8: 蒸汽清洗过程 | AA8: 2#库
A9: 高危化学品 | B9: 900-002-03 | C9: 半固态 | D9: 0 | E9: =0.077+0.108 -> 0.185 | J9: 0.185 | L9: 0.185 | P9: 0.185 | R9: 废商标 | S9: 0 | T9: 0.585 | V9: 0.585 | Y9: 0 | Z9: 除商标 | AA9: 2#库
A10: 一般废药品 | B10: 900-002-03 | C10: 固态 | D10: 0.2 | E10: =0.795+0.461 -> 1.256 | J10: 1.456 | L10: 1.456 | P10: 1.456 | R10: 废残液 | S10: 0 | T10: 1.795 | V10: 1.795 | Y10: 0 | Z10: 抽残液 | AA10: 2#库
A11: 磷化铝、杀虫剂 | B11: 900-003-04 | C11: 固态 | D11: 0.3 | F11: =0.3 -> 0.3 | J11: 0 | P11: 0 | R11: 废渣 | S11: 0 | T11: 1.795 | V11: 1.795 | Y11: 0 | Z11: 清洗过程 | AA11: 2#库
A12: 废药物、药品 杀虫剂、磷化铝等 | B12: 900-003-04 | C12: 半固态 | D12: 0 | J12: 0 | P12: 0 | R12: 漆渣 | S12: 0 | Y12: 0 | Z12: 清洗过程
A13: 废盐 | B13: 263-008-04 | C13: 固态 | D13: 0 | J13: 0 | P13: 0 | R13: 污水厂污泥 | S13: 0 | T13: 2.185 | V13: 2.185 | Y13: 0 | Z13: 水处理后产生的污泥 | AA13: 2#库
A14: 蒸馏残液 | B14: 263-008-04 | C14: 半固态 | D14: 9.4 | J14: 9.4 | K14: 9.4 | P14: 9.4 | R14: 废清洗剂 | S14: 0 | Y14: 0 | Z14: 清洗剂清洗过程
A15: 废渣 | B15: 263-009-04 | C15: 固态 | D15: 5 | J15: 5 | K15: 5 | P15: 5
A16: 污泥 | B16: 263-011-04 | C16: 固态 | D16: 2.48 | J16: 2.48 | K16: 2.48 | P16: 2.48
A17: 废弃木材 | B17: 201-003-05 | C17: 固态 | D17: 0 | J17: 0 | P17: 0
A18: 废有机溶剂 | B18: 900-401-06 | C18: 液态 | D18: 0 | J18: 0 | P18: 0
A19: 废有机溶剂及废物 | B19: 900-402-06 | C19: 液态 | D19: 129.639 | E19: =26.236 -> 26.236 | F19: =0.144+1.65+1.95 -> 3.744 | J19: 152.131 | L19: 152.131 | P19: 152.131
A20: 清洗剂、渗透剂包装物 | B20: 900-402-06 | C20: 固态 | D20: 0.06 | J20: 0.06 | L20: 0.06 | P20: 0.06
A21: 废有机溶剂 | B21: 900-404-06 | C21: 液态 | D21: 15.59 | E21: =0.0485+1.7 -> 1.7485 | F21: =0.8485 -> 0.8485 | J21: 16.49 | L21: 16.49 | P21: 16.49
A22: 定期更换的活性炭 | B22: 900-405-06 | C22: 固态 | D22: 0 | J22: 0 | P22: 0
A23: 丙烯酸甲酯聚合物 | B23: 900-407-06 | C23: 固态 | D23: 0 | J23: 0 | P23: 0
A24: 废有机溶剂 | B24: 900-407-06 | C24: 液态 | D24: 78.1706 | E24: =18.698 -> 18.698 | J24: 96.8686 | L24: 96.8686 | P24: 96.8686
A25: 油污水 | B25: 251-001-08 | C25: 液态 | D25: 168.24 | J25: 168.24 | L25: 168.24 | P25: 168.24
A26: 废滤芯 | B26: 251-012-08 | C26: 固态 | D26: 0 | E26: =3.16 -> 3.16 | J26: 3.16 | K26: 3.16 | P26: 3.16
A27: 废溶剂油 | B27: 291-001-08 | C27: 液态 | D27: 0 | J27: 0 | P27: 0
A28: 废溶剂油 | B28: 291-001-08 | C28: 半固态 | D28: 62.94 | E28: =25.26 -> 25.26 | J28: 88.2 | K28: 88.2 | P28: 88.2
A29: 油泥、油脚 | B29: 071-001-08 | C29: 液态 | D29: 0 | J29: 0 | P29: 0
A30: 含油泥浆 | B30: 071-002-08 | C30: 液态 | D30: 1125.3 | J30: 1125.3 | N30: 1125.3 | P30: 1125.3
A31: 含油岩屑 | B31: 071-002-08 | C31: 半固态 | D31: =3141.553-67.97 -> 3073.583 | F31: =11.08+7.39+7.39+27.7+8.87+11.08-67.97 -> 5.54 | J31: 3068.043 | M31: 473.441 | N31: 2594.602 | P31: 3068.043
A32: 废油泥 | B32: 900-200-08 | C32: 半固态 | D32: 0.81 | J32: 0.81 | L32: 0.81 | P32: 0.81
A33: 废砂轮 | B33: 900-200-08 | C33: 固态 | D33: 0 | E33: =0.5 -> 0.5 | J33: 0.5 | L33: 0.5
A34: HW08废油 | B34: 900-200-08 | C34: 液态 | D34: 23.56 | E34: =3.04 -> 3.04 | J34: 26.6 | K34: 11.32 | N34: 15.28 | P34: =K34+L34+M34+N34+O34 -> 26.6
A35: 油泥 | B35: 900-201-08 | C35: 液态 | D35: 3.626 | F35: =0.386 -> 0.386 | J35: 3.24 | N35: 3.24 | P35: 3.24
A36: 油泥 | B36: 900-201-08 | C36: 半固态 | D36: 0 | J36: 0 | P36: 0
A37: 废润滑油废浮渣 | B37: 900-209-08 | C37: 半固态 | D37: 0 | E37: =0.032 -> 0.032 | F37: =0.032 -> 0.032 | J37: 0 | P37: 0
A38: 水处理浮渣及污泥 | B38: 900-210-08 | C38: 半固态 | D38: 3.98 | E38: =5.375+24.8+33.064+2.44+11.877 -> 77.556 | F38: =0.68+25.044+8.675 -> 34.399 | J38: 47.137 | K38: 2.44 | L38: =44.697-40 -> 4.697 | O38: 40 | P38: 47.137
A39: 废机油、含油废水 | B39: 900-210-08 | C39: 液态 | D39: 235.2 | J39: 235.2 | L39: 32.76 | N39: 202.44 | P39: 235.2
A40: 废油泥 | B40: 900-210-08 | C40: 固态 | D40: 34.6 | J40: 34.6 | L40: =34.6-30 -> 4.6 | N40: =30 -> 30 | P40: 34.6
A41: 废水处理过程产废油、油泥、浮渣 | B41: 900-210-08 | C41: 液态 | D41: 0 | J41: 0 | P41: 0
A42: 废白土 | B42: 900-213-08 | C42: 固态 | D42: 56.44 | F42: =21.38+35.06 -> 56.44 | J42: 0 | P42: 0
A43: 废机油 | B43: 900-213-08 | C43: 液态 | D43: 1 | J43: 1 | N43: 1 | P43: 1
A44: 废矿物油 | B44: 900-214-08 | C44: 液态 | D44: 76.49634 | E44: =15.64+0.0691+5.32+0.17 -> 21.1991 | J44: 97.69544 | N44: 97.69544 | P44: 97.69544
A45: 废矿物油 | B45: 900-214-08 | C45: 半固态 | D45: 8.56 | F45: =8 -> 8 | J45: 0.56 | L45: 0.56 | P45: 0.56
A46: 废矿物油 | B46: 900-217-08 | C46: 液态 | D46: 41.36185 | J46: 41.36185 | N46: 41.36185 | P46: 41.36185
A47: 废甘油 | B47: 900-217-08 | C47: 半固态 | D47: 0 | J47: 0 | P47: 0
A48: 废液压油 | B48: 900-218-08 | C48: 液态 | D48: 44.3908 | E48: =2.5+6.26 -> 8.76 | J48: 53.1508 | N48: 53.1508 | P48: 53.1508
A49: 废冷冻机油 | B49: 900-219-08 | C49: 液态 | D49: 11.77 | E49: =1.24 -> 1.24 | F49: =0.4 -> 0.4 | J49: 12.61 | N49: 12.61 | P49: 12.61
A50: 废矿物油与含矿物油废物 | B50: 900-220-08 | C50: 液态 | D50: 21.11833 | G50: =5.5 -> 5.5 | J50: 15.61833 | L50: 9.8 | N50: 5.81833 | P50: 15.61833
A51: 清罐污泥 | B51: 900-220-08 | C51: 固态 | D51: 0 | J51: 0 | P51: 0
A52: 废油泥 | B52: 900-221-08 | C52: 半固态 | D52: 0 | J52: 0 | P52: 0
A53: 废矿物油 | B53: 900-249-08 | C53: 液态 | D53: 121.2735 | E53: =8.98+0.0543+29.38+1.364+1.36 -> 41.1383 | F53: =0.3 -> 0.3 | J53: 162.1118 | K53: 1.36 | L53: 28.78 | N53: 131.9718 | P53: 162.1118
A54: 废矿物油、废油桶 | B54: 900-249-08 | C54: 固态 | D54: 69.251 | E54: =2.08+4.38+0.24+10.74+4.42+6.1 -> 27.96 | F54: =10.96 -> 10.96 | H54: =4.38+7.62+5.56 -> 17.56 | J54: 68.691 | K54: 27.24 | L54: =41.451-30 -> 11.451 | O54: =30 -> 30 | P54: 68.691
A55: 废矿物油、油泥 | B55: 900-249-08 | C55: 半固态 | D55: 27.18 | E55: =16.48 -> 16.48 | F55: =23.16+16.48 -> 39.64 | J55: 4.02 | K55: 4.02 | P55: 4.02
A56: 废水、乳化液 | B56: 900-007-09 | C56: 液态 | D56: 146.66 | E56: =5.786+2.971+6.263 -> 15.02 | F56: =0.4+1.05 -> 1.45 | G56: =6.387 -> 6.387 | J56: 153.843 | L56: 153.843 | P56: 153.843
A57: 废乳化液 | B57: 900-006-09 | C57: 液态 | D57: 185.14 | E57: =11.2+32.32+2.9+1.42+29.78+18.67 -> 96.29 | F57: =1 -> 1 | J57: 280.43 | L57: 280.43 | P57: 280.43
A58: 砂轮沫 | B58: 900-006-09 | C58: 固态 | D58: 3.902 | E58: =2.08 -> 2.08 | F58: =3.902 -> 3.902 | J58: 2.08 | L58: 2.08 | P58: 2.08
A59: 废焦油渣 | B59: 252-005-11 | C59: 固态 | D59: 0 | J59: 0 | P59: 0
A60: 煤焦油、釜残 | B60: 900-013-11 | C60: 固态 | D60: 11.2224 | E60: =0.86 -> 0.86 | F60: =7.847 -> 7.847 | J60: 4.2354 | K60: 0.86 | L60: 3.3754 | P60: 4.2354
A61: 煤焦油 | B61: 900-013-11 | C61: 液态 | D61: 41.58 | F61: =1 -> 1 | J61: 40.58 | K61: 12 | L61: 28.58 | P61: 40.58
A62: 釜残 | B62: 900-013-11 | C62: 半固态 | D62: 333.92 | E62: =5.693+1.56+29.24 -> 36.493 | J62: 370.413 | K62: 370.413 | P62: 370.413
A63: 煤焦油 | B63: 451-003-11 | C63: 半固态 | D63: 0 | J63: 0 | P63: 0
A64: 煤焦油 | B64: 451-003-11 | C64: 液态 | D64: 76.52 | E64: =48.26 -> 48.26 | F64: =9.5 -> 9.5 | J64: 115.28 | K64: 48.26 | L64: 34.02 | N64: 33 | P64: 115.28
A65: 焦油渣 | B65: 451-003-11 | C65: 固态 | D65: 0 | J65: 0 | P65: 0
A66: 焦油渣 | B66: 451-001-11 | C66: 固态 | D66: 0 | J66: 0 | P66: 0
A67: 漆渣 | B67: 900-250-12 | C67: 半固态 | D67: 0 | E67: =1.212+0.262 -> 1.474 | F67: =1.212+0.262 -> 1.474 | J67: 0 | P67: 0
A68: 废涂料 | B68: 900-251-12 | C68: 液态 | D68: 0.11 | F68: =0.11 -> 0.11 | J68: =D68+E68-F68-G68-H68-I68 -> 0 | P68: 0
A69: 废彩涂液 | B69: 900-252-12 | C69: 液态 | D69: 88.48 | E69: =21.44 -> 21.44 | F69: =21.68+5+15.48 -> 42.16 | J69: 67.76 | K69: 43.36 | L69: 24.4 | P69: 67.76
A70: 废漆渣 | B70: 900-252-12 | C70: 固态 | D70: 60.31 | E70: =8.7+8.93+2.6+1.44+5+1.1 -> 27.77 | F70: =0.8+2.8+0.56+1.2 -> 5.36 | J70: 82.72 | K70: 61.07 | L70: =21.65-10 -> 11.65 | O70: 10 | P70: 82.72
A71: 漆渣 | B71: 900-252-12 | C71: 半固态 | D71: 10.43 | J71: 10.43 | L71: =10.43-10 -> 0.43 | O71: 10 | P71: 10.43
A72: 废油漆 | B72: 900-256-12 | C72: 液态 | D72: 5.28 | F72: =0.28 -> 0.28 | J72: 5 | K72: 5 | P72: 5
A73: 废油漆 | B73: 900-256-12 | C73: 半固态 | D73: 0 | J73: 0 | P73: 0
A74: 油墨渣子、油漆 | B74: 900-299-12 | C74: 半固态 | D74: 0 | J74: 0 | P74: 0
A75: 硒鼓墨盒 | B75: 900-299-12 | C75: 固态 | D75: 0.18 | E75: =0.54+0.041 -> 0.581 | F75: =0.18+0.54 -> 0.72 | J75: 0.041 | K75: 0.041 | P75: 0.041
A76: 油漆渣 | B76: 900-299-12 | C76: 液态 | D76: 1.6 | E76: =2.4 -> 2.4 | J76: 4 | K76: 2.4 | L76: 1.6 | P76: 4
A77: 废油墨 | B77: 264-011-12 | C77: 液态 | D77: 0 | J77: 0 | P77: 0
A78: 油墨渣 | B78: 264-011-12 | C78: 固态 | D78: 0 | J78: 0 | P78: 0
A79: 污泥 | B79: 264-012-12 | C79: 固态 | D79: 0 | E79: =4.09 -> 4.09 | J79: 4.09 | L79: 4.09 | P79: 4.09
A80: 废漆渣稀释剂混合物 | B80: 264-013-12 | C80: 液态 | D80: 0 | J80: 0 | P80: 0
A81: 发泡废料，废胶水 | B81: 900-014-13 | C81: 半固态 | D81: 0.266 | F81: =0.166+0.1 -> 0.266 | J81: 0 | P81: 0
A82: 废胶水 | B82: 900-014-13 | C82: 液态 | D82: 0 | J82: 0 | P82: 0
A83: 发泡废料，废胶水 | B83: 900-014-13 | C83: 固态 | D83: 9.78 | F83: =2.92 -> 2.92 | J83: 6.86 | K83: 6.86 | P83: 6.86
A84: 废树脂 | B84: 900-015-13 | C84: 固态 | D84: 8.62 | E84: =0.285 -> 0.285 | F84: =8.62+0.285 -> 8.905 | J84: 0 | P84: 0
A85: 废树脂 | B85: 900-015-13 | C85: 半固态 | D85: 0 | J85: 0 | P85: 0
A86: 有机树脂废物 | B86: 900-016-13 | C86: 半固态 | D86: 3.57 | F86: =3.57 -> 3.57 | J86: 0 | P86: 0
A87: 树脂胶 | B87: 265-101-13 | C87: 固态 | D87: 35.952 | E87: =26.24+28.4 -> 54.64 | F87: =8.24+8+7+21.112+20 -> 64.352 | J87: 26.24 | K87: 26.24 | P87: 26.24
A88: 不合格有机树脂 | B88: 265-101-13 | C88: 半固态 | D88: 0 | J88: 0 | P88: 0
A89: 含盐废水 | B89: 265-103-13 | C89: 液态 | D89: 0 | J89: 0 | P89: 0
A90: 釜残与滤渣 | B90: 265-103-13 | C90: 半固态 | D90: 0 | J90: 0 | P90: 0
A91: 产品水解物、氯化镁盐 | B91: 265-103-13 | C91: 固态 | D91: 0 | J91: 0 | P91: 0
A92: 污泥 | B92: 265-104-13 | C92: 半固态 | D92: 0 | J92: 0 | P92: 0
A93: 污水处理站污泥 | B93: 265-104-13 | C93: 固态 | D93: 0 | E93: =14.68 -> 14.68 | J93: 14.68 | K93: 14.68 | P93: 14.68
A94: 印刷版 | B94: 231-002-16 | C94: 固态 | D94: 0 | J94: 0 | P94: 0
A95: 废显影液 | B95: 900-019-16 | C95: 液态 | D95: 0 | E95: =0.5 -> 0.5 | F95: =0.5 -> 0.5 | J95: 0 | P95: 0
A96: 废显影液 | B96: 398-001-16 | C96: 液态 | D96: 0 | J96: 0 | P96: 0
A97: 助镀再生废渣 | B97: 336-051-17 | C97: 固态 | D97: 0 | J97: 0 | P97: 0
A98: 含铬污泥 | B98: 336-060-17 | C98: 固态 | D98: 0 | J98: 0 | P98: =K98+L98+M98+N98+O98 -> 0
A99: 镀铜溶液 | B99: 336-062-17 | C99: 液态 | D99: 0 | J99: 0 | P99: 0
A100: 含铜污泥 | B100: 336-062-17 | C100: 固态 | D100: 0 | J100: 0 | P100: 0
A101: 污泥 | B101: 336-053-17 | C101: 固态 | D101: 0 | J101: 0 | P101: 0
A102: 电镀污泥 | B102: 336-063-17 | C102: 半固态 | D102: 0 | J102: 0 | P102: 0
A103: 电镀污泥 | B103: 336-063-17 | C103: 固态 | D103: 0 | J103: 0 | P103: 0
A104: 磷化污泥 | B104: 336-064-17 | C104: 固态 | D104: 0 | E104: =17.28 -> 17.28 | F104: =10 -> 10 | J104: 7.28 | L104: 7.28 | P104: 7.28
A105: 金属表面处理污泥 | B105: 336-064-17 | C105: 半固态 | D105: 0 | J105: 0 | P105: 0
A106: 金属表面处理污泥 | B106: 336-064-17 | C106: 液态 | D106: 33.83 | J106: 33.83 | L106: 33.83 | P106: 33.83
A107: 污泥 | B107: 336-069-17 | C107: 半固态 | D107: 0 | J107: 0 | P107: 0
B108: 336-069-17 | C108: 液态 | D108: 0 | J108: 0 | P108: 0
A109: 污泥 | B109: 336-069-17 | C109: 固态 | D109: 0 | J109: 0 | P109: 0
A110: 废UV灯管 | B110: 900-023-29 | C110: 固态 | D110: 0 | J110: 0 | P110: 0
A111: 废碱液 | B111: 251-015-35 | C111: 液态 | D111: 12.86 | E111: =12.7+12.84+12.58 -> 38.12 | J111: 50.98 | L111: 50.98 | P111: 50.98
A112: 废碱泥 | B112: 251-015-35 | C112: 半固态 | D112: 48.76 | E112: =16.84 -> 16.84 | J112: 65.6 | L112: =65.6-40 -> 25.6 | O112: 40 | P112: 65.6
A113: 片碱袋 | B113: 900-399-35 | C113: 固态 | D113: 0 | J113: 0 | P113: 0
A114: 清洁剂 | B114: 900-399-35 | C114: 液态 | D114: 0 | J114: 0 | P114: 0
A115: 废硫氢化钠残渣 | B115: 900-399-35 | C115: 半固态 | D115: 0 | J115: 0 | P115: 0
A116: 废碱液 | B116: 900-352-35 | C116: 液态 | D116: 80.49 | E116: =10.1 -> 10.1 | F116: =6.32 -> 6.32 | J116: 84.27 | K116: 12.76 | L116: 71.51 | P116: 84.27
A117: 废碱液 | B117: 900-354-35 | C117: 液态 | D117: 0 | J117: 0 | P117: 0
A118: 含酚废水 | B118: 261-070-39 | C118: 液态 | D118: 143.56 | J118: 143.56 | N118: 143.56 | P118: 143.56
A119: 废活性炭 | B119: 261-071-39 | C119: 固态 | D119: 0 | J119: 0 | P119: 0
A120: 污泥 | B120: 261-084-45 | C120: 固态 | D120: 23 | E120: =4.62 -> 4.62 | F120: =23 -> 23 | J120: 4.62 | L120: 4.62 | P120: 4.62
A121: 含油废物 | B121: 900-041-49 | C121: 固态 | D121: 756.57383 | E121: =12.313+12.11+14.235+7.2+2.8+6.6+1.0352+8.678+6.202+13.993+23.097+35.5964+41.172+46.1+55.41+4.374 -> 290.9156 | F121: =33.227+17.872+30.57+47.893+26.66+56.24433 -> 212.46633 | H121: =11.718+10.5+7.54+11.6 -> 41.358 | J121: 793.6651 | K121: 670.702 | L121: =122.9631-120 -> 2.9631 | O121: =120 -> 120 | P121: 793.6651
A122: 含有或沾染危险废物的废弃物 | B122: 900-041-49 | C122: 半固态 | D122: 0 | J122: 0 | P122: 0
A123: 防腐剂 | B123: 900-041-49 | C123: 液态 | D123: 0 | J123: 0 | P123: 0
A124: 废酸碱袋 | B124: 900-042-49 | C124: 固态 | D124: 0.715 | E124: =0.251+0.524+0.187+0.285 -> 1.247 | F124: =0.966+0.711 -> 1.677 | J124: 0.285 | K124: 0.285 | P124: 0.285
A125: 污泥 | B125: 772-006-49 | C125: 固态 | D125: 18.85714 | F125: =18.85714 -> 18.85714 | J125: 0 | P125: 0
A126: 污泥 | B126: 772-006-49 | C126: 半固态 | D126: 3 | F126: =3 -> 3 | J126: 0 | P126: 0
A127: 废活性炭 | B127: 900-039-49 | C127: 固态 | D127: 8.069 | E127: =0.034+11.2312+1+2.24+1+7.49+0.565+8.84+0.2 -> 32.6002 | F127: =7.921+20.5852 -> 28.5062 | J127: 12.163 | L127: =12.163-10 -> 2.163 | O127: 10 | P127: 12.163
A128: 废水污泥 | B128: 900-046-49 | C128: 固态 | D128: 0 | E128: =5.44 -> 5.44 | F128: =5.44 -> 5.44 | J128: 0 | P128: 0
A129: 污泥 | B129: 900-046-49 | C129: 半固态 | D129: 0 | J129: 0 | P129: 0
A130: 过期化学药品 | B130: 900-047-49 | C130: 固态 | D130: 0.3452 | E130: =0.08+0.911 -> 0.991 | J130: 1.3362 | L130: 1.3362 | P130: 1.3362
A131: 乙腈、异丙酮、废液 | B131: 900-047-49 | C131: 液态 | D131: 77.46964 | E131: =3.6582+9.4453+3.2714+1.95199+4.18665+1.795+3.9183+5.8913+2.7316+3.84+4+3.7553 -> 48.44504 | F131: =8.9467+5.5+3.5345 -> 17.9812 | G131: =2.26 -> 2.26 | J131: 105.67348 | L131: 105.67348 | P131: 105.67348
A132: 过期药品、剧毒品 | B132: 900-999-49 | C132: 固态 | D132: 0 | J132: =D132+E132-F132-G132-H132-I132 -> 0 | P132: 0
A133: 过期面膜原料、残液 | B133: 900-999-49 | C133: 液态 | D133: 16.8 | F133: =1.996 -> 1.996 | J133: 14.804 | L133: 14.804 | P133: 14.804
A134: 废催化剂 | B134: 261-152-50 | C134: 固态 | D134: 0 | J134: 0 | P134: 0
A135: 小计： | D135: =SUM(D4:D134) -> 7771.04963 | E135: 1105.07774 | F135: 684.17037 | G135: 14.147 | H135: 58.918 | I135: 0 | J135: 8118.892 | K135: 1440.291 | L135: 1454.12978 | M135: 473.441 | N135: 4491.03022 | O135: 260 | P135: 8118.392
A136: 合计： | F136: =F135+G135+H135+I135 -> 757.23537
